Cogmind - Beta 16 @@@ ROGUE MODE // 2025.12.23 @ 19:29:03 Player: War__Prophet Result: Destroyed by Y-45 Defender with Beam Rifle Performance ------------- Evolutions (1) 500 Regions Visited (2) 400 Robots Destroyed (28) 140 Value Destroyed (585) 585 Prototype IDs (0) 0 Alien Tech Used (0) 0 Bonus (0) 0 TOTAL SCORE: 1625 Bonus ------- None Cogmind --------- Core Integrity 0/400 Matter 295/300 Energy 100/100 System Corruption 2% Temperature Cool (9) Movement Rolling (100) Location -9/Materials Parts ------- > --- POWER (1) -------- (None) > --- PROPULSION (2) --- Compact Wheel Compact Wheel > --- UTILITY (4) ------ Heat Sink Large Storage Unit Hardened Light Armor Plating > --- WEAPON (2) ------- Light Assault Rifle > --- INVENTORY (15) --- Ion Engine Ion Engine Ion Engine Light Ion Engine Light Ion Engine Light Ion Engine Compact Wheel Small Storage Unit Huge Storage Unit Hardened Light Armor Plating Small Laser Light Assault Rifle Peak State ------------ > --- POWER ------------ Improved Ion Engine > --- PROPULSION ------- Aluminum Leg Aluminum Leg > --- UTILITY ---------- Heat Sink Disposable Heat Sink Large Storage Unit Hardened Light Armor Plating > --- WEAPON ----------- Light Assault Rifle Light Assault Rifle > --- INVENTORY -------- Ion Engine Ion Engine Light Ion Engine Light Ion Engine Small Storage Unit Huge Storage Unit Hardened Light Armor Plating Hardened Light Armor Plating Small Laser Light Assault Rifle Light Assault Rifle Light Assault Rifle [Rating: 13] Favorites ----------- Power Improved Ion Engine Engine Improved Ion Engine Propulsion Compact Wheel Leg Aluminum Leg Wheel Compact Wheel Utility Heat Sink Device Heat Sink Storage Large Storage Unit Protection Hardened Light Armor Plating Weapon Light Assault Rifle Energy Gun Small Laser Ballistic Gun Light Assault Rifle Build | -11 -10 -9 ------- Run | Yrd Mat Mat Slots Evolved 2 | . . 2 Power . | . . . Propulsion . | . . . Utility 2 | . . 2 Weapon . | . . . Parts Attached 25 | 6 3 16 Power 3 | 1 1 1 Engine 3 | 1 1 1 Core . | . . . Reactor . | . . . Propulsion 7 | 2 . 5 Treads . | . . . Leg 2 | . . 2 Wheel 5 | 2 . 3 Hover . | . . . Flight . | . . . Utility 7 | 1 . 6 Device 3 | . . 3 Storage 2 | 1 . 1 Processor . | . . . Hackware . | . . . Protection 2 | . . 2 Artifact . | . . . Weapon 8 | 2 2 4 Energy Gun 2 | 2 . . Energy Cannon . | . . . Ballistic Gun 6 | . 2 4 Ballistic Cannon . | . . . Launcher . | . . . Special Weapon . | . . . Impact Weapon . | . . . Slashing Weapon . | . . . Piercing Weapon . | . . . Special Melee Weapon . | . . . Unidentified Prototypes . | . . . Parts Lost 13 | . 2 11 Power 2 | . 1 1 Propulsion 4 | . . 4 Utility 2 | . . 2 Weapon 5 | . 1 4 Highest Loss Streak 7 | . 2 7 To Critical Strikes . | . . . Average Backups 10 | . 4 11 Power 4 | . 1 5 Propulsion . | . 1 . Utility 2 | . 1 3 Weapon 2 | . . 2 Tool/Special . | . . . Unused Backups 8 | . . 8 Power 6 | . . 6 Propulsion . | . . . Utility 2 | . . 2 Weapon . | . . . Tool/Special . | . . . Average Slot Usage (%) 86 | . 82 87 Engine 5 | . 13 3 Leg 4 | . . 5 Wheel 16 | . 28 14 Device 17 | . . 20 Storage 11 | . 14 11 Protection 8 | . . 10 Energy Gun 3 | . 22 . Ballistic Gun 19 | . 4 21 Peak Build Rating 13 | 6 6 13 Average Rating 9 | 3 5 11 On Entrance 4 | . 6 6 Avg Prop Armor Cover (%) . | . . . Naked Turns . | . . . Heaviest Build 36 | 11 12 36 Greatest Support 32 | 26 26 32 Greatest Overweight (x) 9 | . . 9 Average Overweight (x) . | . . . Largest Inventory Capacity 15 | 8 8 15 Average Capacity 13 | 6 8 14 Most Carried 15 | 1 8 15 Average Carried 10 | . 4 11 Final Capacity 15 | 8 8 15 Final Carried 12 | 1 8 12 Class Distribution -------------------- 65% | Scavenger-Mutant 34% | Mutant Dominant Class ---------------- Mutant | -10/Materials Scavenger-Mutant | -9/Materials Resources | -11 -10 -9 ----------- Run | Yrd Mat Mat Matter Collected 598 | 229 52 317 Remotely . | . . . Salvage Created 695 | . 181 514 Parts 52 | . 17 35 Haulers Intercepted . | . . . Recyclers Shooed 2 | . 2 . Parts Field Recycled . | . . . Retrieved Matter . | . . . Parts Self-Destructed . | . . . Prevented . | . . . Parts Restored . | . . . Kills | -11 -10 -9 ------- Run | Yrd Mat Mat Combat Hostiles Destroyed 27 | . 9 18 Guns 27 | . 9 18 Classes Destroyed 4 | . 2 2 Watcher 1 | . . 1 Swarmer 16 | . 6 10 Grunt 9 | . 3 6 Sentry 2 | . . 2 Best Kill Streak 8 | . 8 4 Combat Bots Only 8 | . 8 4 Max Kills in Single Turn 2 | . 1 2 Gunslinging 1 | . . 1 Exploded . | . . . Melee . | . . . Uniques/NPCs Destroyed . | . . . Combat | -11 -10 -9 -------- Run | Yrd Mat Mat Hostile Shots Fired 225 | . 43 182 Missed 62 | . 12 50 Hits 163 | . 31 132 Projectile 163 | . 31 132 Critical Strikes 5 | . 1 4 Damage Taken 1811 | . 296 1515 Core 483 | . 71 412 Absorbed by Shields . | . . . Core Remaining (%) 85 | 100 71 . Volleys Fired 108 | . 21 87 Largest 2 | . 2 2 Hottest 80 | . 80 40 Shots Fired 207 | . 35 172 Gun 207 | . 35 172 Cannon . | . . . Launcher . | . . . Special . | . . . Kinetic 180 | . 8 172 Thermal 16 | . 16 . Explosive . | . . . Electromagnetic 11 | . 11 . Robot Hit Streak 9 | . 8 9 Robot Miss Streak 7 | . 4 7 Penetration Max . | . . . Secondary Targets 3 | . 1 2 Max Gunslinging Chain 1 | . 1 1 Shots Hit Robots 125 | . 17 108 Core Hits 56 | . 11 45 Critical Kills . | . . . Critical Parts Destroyed 1 | . . 1 Critical Strikes 1 | . . 1 Destroy 1 | . . 1 Melee Attacks . | . . . Impact . | . . . Slashing . | . . . Piercing . | . . . Sneak Attacks . | . . . Combat Hostiles . | . . . Follow-up Attacks . | . . . Damage Inflicted 1192 | . 214 978 Guns 1135 | . 201 934 Cannons . | . . . Explosions . | . . . Melee . | . . . Ramming 57 | . 13 44 Kinetic 991 | . 57 934 Thermal 68 | . 68 . Explosive . | . . . Electromagnetic 76 | . 76 . Impact . | . . . Slashing . | . . . Piercing . | . . . Highest Corruption 3 | . 3 2 Average Corruption 2 | . 2 2 Corruption Purged . | . . . Corruption Blocked . | . . . Effects 1 | . . 1 Matter Fused 1 | . . 1 Overload Shots . | . . . Overflow Damage . | . . . Projectiles . | . . . Explosions . | . . . Melee . | . . . Knockbacks . | . . . Impact . | . . . Kinetic . | . . . Secondary . | . . . Self-Inflicted Damage 26 | . 6 20 Shots . | . . . Rammed 7 | . 3 4 Targets Rammed 8 | . 3 5 Kicked 1 | . . 1 Crushed . | . . . Highest Temperature 108 | . 108 24 Average Temperature 31 | . 37 6 Received Heat Transfer 681 | . 84 597 Siege Activations . | . . . Martial Activations . | . . . Shielding Activations . | . . . Robots Disrupted . | . . . Combat Hostiles . | . . . Robots Corrupted . | . . . Combat Hostiles . | . . . Parts Fried . | . . . Impact Corruptions . | . . . Robots Melted . | . . . Combat Hostiles . | . . . Parts Melted . | . . . Heat Transferred 150 | . 150 . Parts Sabotaged . | . . . Parts Stolen . | . . . Parts Stripped . | . . . Power Chain Reactions . | . . . Alert | -11 -10 -9 ------- Run | Yrd Mat Mat Maximum Alert Level 1 | . . 1 Low Security (%) 70 | 100 100 63 Level 1 29 | . . 36 Level 2 . | . . . Level 3 . | . . . Level 4 . | . . . Level 5 . | . . . High Security . | . . . Max Security . | . . . Peak Influence 291 | . 160 291 Initial 67 | . . 67 Average 141 | . 44 164 Influence Increases 750 | . 230 520 Destroy 0b10 Robot/C 540 | . 180 360 Destroy 0b10 Robot/NC 5 | . . 5 Destroy Leader 122 | . 50 72 Successful Hack 8 | . . 8 Lose Combat Pursuer 75 | . . 75 Influence Decreases 695 | . 70 625 Entered New Map 93 | . . 93 Time Decay 472 | . 50 422 Lost Part 130 | . 20 110 Squads Dispatched 4 | . 3 1 Investigation 2 | . 1 1 Extermination . | . . . Reinforcement 2 | . 2 . Assault . | . . . Garrison . | . . . Intercept . | . . . Searches Triggered . | . . . Construction Impeded . | . . . Haulers Reinforced . | . . . Active Scanning Responses . | . . . Cargo Convoy Interrupts . | . . . Stealth | -11 -10 -9 --------- Run | Yrd Mat Mat Distress Signals 4 | . 1 3 Communications Jammed . | . . . Distress Signals . | . . . Times Spotted 51 | . 13 38 Peak Tracking Total 8 | . 5 8 Tactical Retreats 3 | . . 3 Traps | -11 -10 -9 ------- Run | Yrd Mat Mat Traps Triggered 3 | . 3 . Indirectly . | . . . Trap Hack Attempts . | . . . Triggered . | . . . Disarmed . | . . . Reprogrammed . | . . . Reused . | . . . Traps Extracted . | . . . Installed . | . . . Triggered . | . . . Machines | -11 -10 -9 ---------- Run | Yrd Mat Mat Machines Disabled 1 | . 1 . Max in Single Turn 1 | . 1 . Machines Repaired . | . . . Machines Dismantled . | . . . Machines Sabotaged . | . . . Overloaded Fab Kills . | . . . Hacking | -11 -10 -9 --------- Run | Yrd Mat Mat Machines Accessed 6 | . . 6 Terminals 6 | . . 6 Fabricators . | . . . Repair Stations . | . . . Recycling Units . | . . . Scanalyzers . | . . . Garrison Access . | . . . Total Hacks 7 | . . 7 Successful 5 | . . 5 Failed 2 | . . 2 Catastrophic . | . . . Database Lockouts . | . . . Manual 8 | . . 8 Terminals 7 | . . 7 Fabricators . | . . . Repair Stations . | . . . Recycling Units . | . . . Scanalyzers . | . . . Garrison Access . | . . . Terminal Hacks . | . . . Fabricator Hacks . | . . . Repair Station Hacks . | . . . Recycling Unit Hacks . | . . . Scanalyzer . | . . . Garrison Access Hacks . | . . . Unauthorized Hacks 5 | . . 5 Terminals 5 | . . 5 Skim 5 | . . 5 Fabricators . | . . . Repair Stations . | . . . Recycling Units . | . . . Scanalyzers . | . . . Garrison Access . | . . . Data Cores Recovered . | . . . Used . | . . . Hacking Detections 3 | . . 3 Full Trace Events 1 | . . 1 Feedback Events . | . . . Feedback Blocked . | . . . Robot Schematics Acquired . | . . . Robots Built . | . . . Authchips . | . . . Time . | . . . Total Robot Build Rating . | . . . Part Schematics Acquired . | . . . Parts Built . | . . . Authchips . | . . . Time . | . . . Total Part Build Rating . | . . . Part Studies Acquired . | . . . Parts Repaired . | . . . Time . | . . . Parts Recycled . | . . . Recycled Matter . | . . . Retrieved Matter . | . . . Retrieved Components . | . . . Parts Scanalyzed . | . . . Part Schematics Acquired . | . . . Parts Damaged . | . . . Bothacking | -11 -10 -9 ------------ Run | Yrd Mat Mat Used RIF Installer . | . . . Robots Hacked . | . . . Non-combat . | . . . Combat . | . . . Robot Hacks Applied . | . . . Relay Couplers Released . | . . . Fabnet Peak Effective % . | . . . Robots Rewired . | . . . Allies Hacked . | . . . Hacks Repelled . | . . . Allies | -11 -10 -9 -------- Run | Yrd Mat Mat Total Allies . | . . . Largest Group . | . . . Highest-Rated Group . | . . . Highest-Rated Ally . | . . . Total Orders . | . . . Ally Attacks . | . . . Total Damage . | . . . Kills . | . . . Allies Corrupted . | . . . Allies Melted . | . . . Intel | -11 -10 -9 ------- Run | Yrd Mat Mat Active Infowar (turns) . | . . . Robot Analysis Total . | . . . Derelict Logs Recovered . | . . . Drone Launches . | . . . Drone Recoveries . | . . . Exploration | -11 -10 -9 ------------- Run | Yrd Mat Mat Turns Passed 1263 | 52 179 1032 Spaces Moved 437 | 48 122 267 Core 6 | 4 . 2 Treads . | . . . Legs 59 | . . 59 Wheels 372 | 44 122 206 Hover . | . . . Flight . | . . . Fastest Speed 50 | 50 90 90 Average Speed 110 | 87 90 123 Slowest Speed 500 | 100 90 500 Overloaded Moves . | . . . Propulsion Burnouts . | . . . Robots Hopped . | . . . Potential Cave-ins . | . . . Cave-ins Triggered . | . . . Exploration Rate (%) 21 | 4 35 26 Regions Visited 2 Branch Regions . Pre-discovered Areas 4 | . . 4 Known Exits Taken . | . . . Unknown Exits Taken 2 | 1 1 . Scrap Searched . | . . . Spaces Dug . | . . . Terrain Destroyed . | . . . Melee . | . . . Projectile . | . . . AOE . | . . . Terrain Rammed . | . . . Walls Destroyed . | . . . Machines Disabled . | . . . Actions | -11 -10 -9 --------- Run | Yrd Mat Mat Total 1037 | 54 156 827 Wait 439 | . 1 438 Move 435 | 47 121 267 Hop . | . . . Pick Up 15 | 1 6 8 Fast Attach 14 | 6 3 5 Attach 6 | . . 6 Detach 1 | . 1 . Swap 8 | . . 8 Drop 3 | . . 3 Fire 108 | . 21 87 Melee . | . . . Ram 7 | . 3 4 Kick 1 | . . 1 Crush . | . . . Escape Stasis . | . . . Rewire . | . . . Trap . | . . . Miscellaneous . | . . . Route ------- -11/Scrapyard -10/Materials (discovered 2 exits: *Mat / [*Min]) -9/Materials (discovered 2 exits: Mat / [*Min]) History --------- Turn | Location | Event 3 | -11/Scrapyard | Discovered new exit (range 15) 53 | -11/Scrapyard | Entered Materials 124 | -10/Materials | Discovered new exit (range 5) 204 | -10/Materials | Discovered new exit (range 14) 232 | -10/Materials | Entered another Materials area 232 | -9/Materials | Evolved 2 slots: Utility x2 237 | -9/Materials | Destroyed 8 combat bots 316 | -9/Materials | Build established: Mutant 594 | -9/Materials | Core integrity fell below 50% 620 | -9/Materials | Core integrity fell below 20% 654 | -9/Materials | Lost 7 parts (1p2n1u3w) 682 | -9/Materials | Discovered new exit (range 16) 762 | -9/Materials | Learned location of 1 exit from Storage 812 | -9/Materials | Learned location of Zion (-6) 897 | -9/Materials | Learned 4 Recycling zone layouts 903 | -9/Materials | Learned Storage security intel 917 | -9/Materials | Build established: Scavenger-Mutant 942 | -9/Materials | Identified exit to Materials 977 | -9/Materials | Learned location of Mines (-8) 1264 | -9/Materials | Destroyed by Y-45 Defender with Beam Rifle Last Messages --------------- 00897_ >> SKIM: Stored Recycling zone layouts (x4). 00903_ >> SKIM: Stored Storage security intel. 00917_ >> SKIM: World map confirmed: -6/Zion. 00942_ >> SKIM: Loading 2 Materials zones... 00977_ >> SKIM: World map updated: -8/Mines. 00977_ >> SKIM: Data seek routine purged. 01142_ K-01 Serf collects debris. 01174_ R-06 Scavenger collects Hover Unit. 01215_ K-01 Serf cleans the Purification Channel. 01216_ Acquired 20 matter. 01222_ Slammed into G-34 Mercenary. 01230_ Slammed into K-01 Serf. 01232_ W-16 Scout sends out distress signal. 01233_ Slammed into W-16 Scout. 01235_ Slammed into K-01 Serf. 01235_ Disposable Heat Sink destroyed. 01235_ System corrupted by crushing effect (+2). 01241_ System corrupted: Matter fused (-10). 01261_ Critical hit (Burn: +37). 01261_ Lgt. Assault Rifle destroyed. Map ----- +----------------------------------------------------+ | ??????????????? # ###+########## # # | | ???????????????##+#### # #??# ######## | | ??????????????? # T #??# # # | | ??????????????? # #??# # """ | | ??????????????? # #??# # """ # | | ???????????????########+############??# # """ # | | ?????????????????????????????????????????????????? | | ?????????????????????????????????????????????????? | | ?????????????????????????????????????????????????? | | ?????????????????????????????????????????????????? | | ?????????????????????????????????????????????????? | | ?????????????????????????????????????????????????? | | ?????????????????????????????????????????????????? | | ?????????????????????????????????????????????????? | | ?????????????????????????????????????????????????? | | ?????????????????????????????????????????????????? | | ?????????????????????????????????????????????????? | | ?????????????????????????????????????????????????? | | ?????????????????????????????????????????????????? | | ?????????????????????????????????????????????????? | | ??????????????????????#############??????????????? | | ?????????????????????? ???????????????? | | ??????????????????????? ?????????????????? | | ???????????????????????? Y ???????????????????? | | ????????????????????????# #????????????????????? | | ????????????????????????#@ #????????????????????? | | ????????????????????????# Y#????????????????????? | | ????????????????????????# ###################### | | ????????????????????????# | | ????????????????????????# k # | | ????????????????????????# # | | ????????????????????????#######################+## | | ?????????????????????????????????????????????????? | | ?????????????????????????????????????????????????? | | ?????????????????????????????????????????????????? | | ?????????????????????????????????????????????????? | | ?????????????????????????????????????????????????? | | ?????????????????????????????????????????????????? | | ?????????????????????????????????????????????????? | | ?????????????????????????????????????????????????? | | ?????????????????????????????????????????????????? | | ?????????????????????????????????????????????????? | | ?????????????????????????????????????????????????? | | ?????????????????????????????????????????????????? | | ?????????????????????????????????????????????????? | | ?????????????????????????????????????????????????? | | ?????????????????????????????????????????????????? | | ?????????????????????????????????????????????????? | | ?????????????????????????????????????????????????? | | ?????????????????????????????????????????????????? | +----------------------------------------------------+ Best States ------------- Heat Dissipation 38 Coolant Potential 50 Energy Generation 12 Energy Capacity 265 Matter Stores 300 Matter Capacity 300 Sight Range 16 Terrain Scan Density 10 Armor Coverage 150 Evasion (%) 42 Item Schematics ----------------- None Robot Schematics ------------------ None Fabricated ------------ Nothing Repaired ---------- Nothing Studied --------- None Alien Tech Used ----------------- None Achievements -------------- None Challenges ------------ None Game ------ Seed CorruptionHoverRedirector Manual? 0 Play Time 00:13:04 Cumulative 57.4 hours Start 2025.12.21 @ 04:05:03 End 2025.12.23 @ 19:29:03 Sessions 2 Manual Loads 0 Difficulty Rogue Special Mode None Game No. 211 Rogue 211 Adventurer 0 Explorer 0 Win Type - Total 0 Types 0/0/0/0/0/0/0/0/0/0 Lore% 14 Gallery% 40 Achievement% 27 Wizard Run 0 Options --------- Layout 0 ASCII 0 Keyboard 1 Movement Vi Keybinds 0 Fullscreen 1 Font 18/SmallcapsGlow Map View 76x50 Zoom Use 0% Tactical HUD 1 Map Filters NONE Filters NONE Steam X RUN: 27c88ace-8c58-4650-bebf-2d01c25d5ef4